bitfinex/quotes_SOLUSD_20260203
["timestamp","ask_amount","ask_price","bid_price","bid_amount"]
[1770135607633,4.33742304,101.06,101.01,64.77909264]
[1770135607954,20.5180742,101.06,101.01,89.52911739]
[1770135608253,20.5180742,101.06,101.02,4.43631015]
[1770135608457,20.51263311,101.06,101.02,4.43631015]
[1770135609050,20.51263311,101.06,101.02,14.33486038]
[1770135609241,10.61727547,101.05,101.02,9.89855023]
[1770135609644,4.33742304,101.05,101.02,9.89855023]
[1770135609830,10.61727547,101.05,101.01,58.49336434]
[1770135610030,4.33742304,101.04,101.01,58.49336434]
[1770135610659,6.27985243,101.05,101.02,9.89897187]
[1770135610660,4.33742304,101.05,101.02,9.89897187]
[1770135610845,9.89444879,101.07,101.02,20.61513445]
[1770135610846,4.33742304,101.06,101.02,20.61513445]
[1770135611029,9.89511833,101.06,101.02,14.33528202]
[1770135611351,4.33742304,101.05,101.02,14.33528202]
[1770135611552,10.61727547,101.05,101.01,54.05735442]
[1770135611744,4.33742304,101.04,101.01,54.05735442]
[1770135611933,10.61727547,101.04,101.01,34.11682785]
[1770135612139,10.61727547,101.03,101.01,34.11682785]
[1770135612339,10.61727547,101.03,101.01,0.1]
[1770135612550,4.33742304,101.01,100.98,37.48263939]
[1770135612842,10.61727547,101.01,100.98,10.00263939]
[1770135613223,10.61727547,101.0,100.98,0.1]
[1770135613535,4.33742304,100.99,100.96,9.90442085]
[1770135613739,4.13742304,101.0,100.97,9.90383268]
[1770135614041,16.17938452,101.02,100.97,39.09997248]
[1770135614227,16.17938452,101.02,100.97,14.34014283]
[1770135614431,6.27985243,101.01,100.97,14.34014283]
[1770135615240,16.17997217,101.01,100.97,9.90383268]
[1770135615835,16.17997217,101.01,100.96,29.19729184]
[1770135615836,4.33742304,100.99,100.96,4.43631015]
[1770135616043,10.61727547,100.99,100.95,51.83862041]
[1770135616230,6.27985243,100.98,100.95,14.3417274]
[1770135616431,4.33742304,100.99,100.96,9.90462166]
[1770135616652,10.61727547,100.99,100.96,9.90462166]
[1770135617434,20.51938585,100.99,100.95,24.2941849]
[1770135617655,4.33742304,100.98,100.95,9.90540225]
[1770135618951,14.23953342,100.99,100.95,14.3417124]
[1770135619255,20.51780607,101.01,100.97,4.43631015]
[1770135619754,20.51579583,101.03,100.99,4.43631015]
[1770135619965,4.33742304,101.01,100.97,38.21616258]
[1770135620261,10.61727547,101.0,100.96,4.43631015]
[1770135620843,10.54642712,100.99,100.95,44.41750627]
[1770135621061,4.26657469,101.0,100.96,10.75173223]
[1770135621876,4.26657469,101.02,100.98,4.4718798]
[1770135622157,4.26657469,101.02,100.98,10.75173223]
[1770135622366,10.54642712,101.02,100.98,4.4718798]
[1770135623042,4.26657469,101.02,100.99,9.90197049]
[1770135623438,4.26657469,101.0,100.97,9.90349558]
[1770135623640,20.44497454,101.03,100.98,20.65453459]
[1770135623859,4.26657469,101.02,100.98,20.65453459]
[1770135624043,4.26657469,101.04,101.01,6.27985243]
[1770135624757,14.16406689,101.04,101.01,6.27985243]
[1770135624954,4.26657469,101.03,101.0,6.27985243]
[1770135625132,4.26657469,101.03,101.0,10.75173223]
[1770135625765,4.26657469,101.06,101.02,10.75173223]
[1770135626062,1.99836828,101.07,101.04,6.27985243]
[1770135626741,1.99836828,101.07,101.03,6.27985243]
[1770135626944,20.44142587,101.07,101.03,6.27985243]
[1770135627143,14.16157344,101.07,101.03,10.75173223]
[1770135627659,4.26657469,101.06,101.02,20.65023934]
[1770135627859,14.16157344,101.07,101.04,6.27985243]
[1770135628159,10.54642712,101.05,101.01,16.17938693]
[1770135628364,4.26657469,101.05,101.01,20.65126673]
[1770135628540,10.54642712,101.05,101.01,14.3714143]
[1770135628739,4.26657469,101.05,101.02,9.89901558]
[1770135629042,4.26657469,101.05,101.02,16.17886801]
[1770135629238,10.54642712,101.05,101.01,20.65122197]
[1770135629445,14.16270467,101.05,101.01,20.65122197]
[1770135629752,20.4425571,101.05,101.01,14.37136954]
[1770135629951,10.54642712,101.04,101.0,4.4718798]
[1770135630147,20.4425571,101.05,101.01,4.4718798]
[1770135630350,4.26657469,101.05,101.02,10.75173223]
[1770135630664,9.8955386,101.06,101.03,6.27985243]
[1770135630665,4.26657469,101.06,101.03,6.27985243]
[1770135630870,14.16172323,101.06,101.03,6.27985243]
[1770135632168,4.26657469,101.06,101.03,20.64935192]
[1770135632763,20.44160887,101.06,101.02,16.17842032]
[1770135633080,4.26657469,101.04,101.0,20.65223234]
[1770135633377,10.54642712,101.03,100.99,20.65337001]
[1770135633674,4.26657469,101.02,100.98,20.65419103]
[1770135633853,4.26657469,101.02,100.99,9.90188542]
[1770135634260,20.44441043,101.04,101.0,10.75173223]
[1770135634563,14.164558,101.04,101.0,10.75173223]
[1770135635146,4.26657469,101.04,101.01,10.75173223]
[1770135635449,4.26657469,101.05,101.02,6.27985243]
[1770135636152,4.26657469,101.03,101.0,6.27985243]
[1770135636469,16.17692289,101.04,100.98,20.65427581]
[1770135636470,10.54642712,101.02,100.98,20.65427581]
[1770135636649,4.26657469,101.02,100.99,9.90191451]
[1770135636853,4.26657469,101.02,100.98,20.65422962]
[1770135637164,10.54642712,101.02,100.98,20.65422962]
[1770135637462,4.26657469,101.02,100.99,9.90189693]
[1770135638245,4.26657469,101.07,101.02,4.4718798]
[1770135638472,13.14548401,101.1,101.06,6.27985243]
[1770135638473,14.15874997,101.09,101.06,6.27985243]
[1770135638766,4.26657469,101.08,101.06,6.27985243]
[1770135639364,4.26657469,101.1,101.06,6.27985243]
[1770135639666,10.54642712,101.1,101.05,10.75173223]
[1770135640370,14.15824899,101.1,101.06,20.64684404]
[1770135640873,4.26657469,101.09,101.05,16.17555889]
[1770135641248,10.54642712,101.11,101.07,6.27985243]
[1770135641447,4.26657469,101.12,101.08,10.75173223]
[1770135642350,4.26657469,101.14,101.1,10.75173223]
[1770135642552,4.26657469,101.14,101.11,6.27985243]
[1770135642869,14.15399285,101.14,101.1,10.75173223]
[1770135643064,4.26657469,101.14,101.11,6.27985243]
[1770135643468,14.1521266,101.16,101.12,6.27985243]
[1770135643772,4.26657469,101.14,101.1,10.75173223]
[1770135644076,20.43197903,101.16,101.11,10.75173223]
[1770135644273,20.4332764,101.15,101.11,4.4718798]
[1770135644458,20.4332764,101.15,101.1,16.17057638]
[1770135644661,4.26657469,101.13,101.09,10.75173223]
[1770135644869,20.4332764,101.15,101.11,4.4718798]
[1770135645067,4.26657469,101.13,101.09,20.64353398]
[1770135645375,10.54642712,101.13,101.09,20.64353398]
[1770135645572,4.26657469,101.12,101.08,16.17251393]
[1770135645874,10.54642712,101.13,101.09,14.364041]
[1770135646072,10.54642712,101.11,101.08,9.89266886]
[1770135646273,4.26657469,101.11,101.08,9.89266886]
[1770135646482,4.26657469,101.12,101.08,20.64440109]
[1770135646779,10.54642712,101.12,101.08,14.36454866]
[1770135647975,10.54642712,101.11,101.07,16.17355012]
[1770135648274,10.54642712,101.11,101.07,20.64542992]
[1770135648662,10.54642712,101.1,101.06,4.4718798]
[1770135648983,4.26657469,101.11,101.08,6.27985243]
[1770135649168,4.26657469,101.1,101.07,9.89380987]
[1770135649566,4.26657469,101.1,101.07,16.1736623]
[1770135649769,4.26657469,101.1,101.06,35.48920455]
[1770135650073,6.27985243,101.09,101.06,14.36651925]
[1770135650479,6.27985243,101.09,101.05,13.9550594]
[1770135650658,10.72882823,101.08,101.04,13.95607544]
[1770135650858,6.27985243,101.08,101.05,9.89584908]
[1770135651057,20.62138114,101.09,101.05,9.89584908]
[1770135651563,20.62138114,101.09,101.04,20.23571009]
[1770135652582,6.27985243,101.08,101.04,20.23571009]
[1770135653690,20.62138114,101.09,101.05,4.35040243]
[1770135654894,20.62138114,101.09,101.05,14.24587704]
[1770135655482,6.27985243,101.07,101.04,14.24707927]
[1770135655698,10.48452562,101.07,101.03,14.24816617]
[1770135656099,6.27985243,101.05,101.02,31.83040243]
[1770135656396,6.27985243,101.05,101.02,4.35040243]
[1770135656973,6.27985243,101.05,101.02,14.24934331]
[1770135657291,10.48452562,101.08,101.03,10.63025486]
[1770135657484,10.48452562,101.08,101.04,4.35040243]
[1770135657680,4.20467319,101.08,101.04,10.63025486]
[1770135658190,10.48452562,101.08,101.04,4.35040243]
[1770135659478,20.37836408,101.08,101.04,14.24746069]
[1770135660288,20.37836408,101.08,101.04,20.52731312]
[1770135660581,20.37836408,101.08,101.04,14.24746069]
[1770135660976,10.48452562,101.07,101.03,14.24807164]
[1770135661178,4.20467319,101.06,101.03,9.89766921]
[1770135661393,4.20467319,101.06,101.03,14.24807164]
[1770135661596,4.20467319,101.09,101.05,10.63025486]
[1770135661907,10.48452562,101.07,101.03,14.24807164]
[1770135662287,6.27985243,101.06,101.03,4.35040243]
[1770135662579,10.48452562,101.08,101.04,4.35040243]
[1770135662787,10.48452562,101.09,101.05,4.35040243]
[1770135662982,4.20467319,101.12,101.08,4.35040243]
[1770135663177,4.20467319,101.12,101.08,10.63025486]
[1770135663376,4.20467319,101.11,101.08,6.27985243]
[1770135663783,4.20467319,101.11,101.07,20.52360256]
[1770135663983,14.09481291,101.12,101.08,20.52302076]
[1770135665298,14.09432446,101.12,101.08,20.52302076]
[1770135665698,10.48452562,101.1,101.06,4.35040243]
[1770135665888,6.27985243,101.07,101.04,14.24700858]
[1770135666078,10.48452562,101.08,101.04,14.24700858]
[1770135666488,6.27985243,101.06,101.03,4.35040243]
[1770135667287,6.27985243,101.06,101.03,14.24827892]
[1770135669918,10.48452562,101.07,101.03,20.52813135]
[1770135670197,4.20467319,101.07,101.03,45.27325656]
[1770135670505,20.37178871,101.1,101.06,4.35040243]
[1770135670805,10.47987783,101.09,101.05,4.35040243]
[1770135671020,6.27520464,101.06,101.03,14.24840547]
[1770135671180,10.47987783,101.07,101.03,14.24840547]
[1770135671385,10.47987783,101.09,101.05,4.35040243]
[1770135671600,10.47987783,101.08,101.04,4.35040243]
[1770135671991,10.47987783,101.08,101.04,14.24718477]
[1770135671992,20.37312366,101.08,101.04,14.24718477]
[1770135672406,6.27520464,101.07,101.04,4.35040243]
[1770135672707,10.47987783,101.07,101.03,14.2481185]
[1770135672907,10.47987783,101.06,101.02,14.24884973]
[1770135673299,6.27520464,101.06,101.03,14.24841332]
[1770135673493,4.20467319,101.07,101.04,9.89697576]
[1770135673689,10.47987783,101.07,101.03,14.24794581]
[1770135674006,34.62613067,101.08,101.02,14.2490848]
[1770135674007,6.27520464,101.05,101.02,14.2490848]
[1770135674308,6.27520464,101.06,101.03,4.35040243]
[1770135675996,16.16862213,101.08,101.04,4.35040243]
[1770135676206,20.37329532,101.08,101.04,4.35040243]
[1770135676894,4.20467319,101.07,101.04,4.35040243]
[1770135677089,4.20467319,101.07,101.04,14.24733453]
[1770135677090,10.47987783,101.07,101.04,14.24733453]
[1770135678610,6.27520464,101.06,101.04,4.35040243]
[1770135679306,20.3743951,101.07,101.04,14.2474201]
[1770135679610,10.47987783,101.07,101.04,14.2474201]
[1770135679807,20.37405141,101.07,101.03,14.24792149]
[1770135680015,6.27520464,101.05,101.02,14.24898978]
[1770135680306,10.47987783,101.06,101.02,14.24898978]
[1770135680890,10.47987783,101.06,101.03,9.89777765]
[1770135681218,20.37519058,101.06,101.02,14.24887152]
[1770135682297,4.05920489,101.04,101.01,9.89955496]
[1770135682504,10.33440953,101.04,101.0,14.23851594]
[1770135682695,6.27520464,101.03,101.0,14.23851594]
[1770135683098,10.33440953,101.04,101.0,14.23851594]
[1770135683298,2.20366438,101.03,100.99,14.24036357]
[1770135683512,8.47886902,101.03,100.99,14.24000256]
[1770135683715,2.20366438,101.03,101.0,4.33849261]
[1770135684301,8.47886902,101.03,101.0,4.33849261]
[1770135684695,18.37713482,101.03,101.0,4.33849261]
[1770135686516,18.37713482,101.03,100.99,14.24000256]
[1770135686517,6.27520464,101.02,100.99,14.24000256]
[1770135686716,10.33440953,101.02,100.99,4.33849261]
[1770135687622,10.33440953,101.01,100.97,14.24193432]
[1770135687919,20.23097621,101.05,101.01,4.33849261]
[1770135688107,4.05920489,101.04,101.01,4.33849261]
[1770135688306,4.05920489,101.04,101.01,14.23839691]
[1770135688719,9.89656668,101.05,101.01,14.23839691]
[1770135689017,20.23097621,101.05,101.01,14.23839691]
[1770135689810,4.05920489,101.04,101.01,14.23839691]
[1770135690119,40.91199893,101.05,101.01,4.33849261]
[1770135690419,44.97120382,101.05,101.01,14.23843018]
[1770135691097,44.97120382,101.05,101.01,4.33849261]
[1770135691305,10.33440953,101.02,100.98,14.24064614]
[1770135691525,6.27520464,101.01,100.98,14.24064614]
[1770135691715,10.33440953,101.01,100.97,14.2423589]
[1770135691922,34.77895586,101.05,100.98,4.33849261]
[1770135692120,10.33440953,101.03,100.99,9.9015529]
[1770135692323,10.33440953,101.02,100.98,14.24098116]
[1770135692503,6.27520464,101.01,100.98,14.24098116]
[1770135692703,20.23359544,101.02,100.98,14.24098116]
[1770135693006,13.9583908,101.02,100.98,20.5161858]
[1770135693202,16.17439055,101.02,100.99,4.33849261]
[1770135693402,10.33440953,101.03,100.99,4.33849261]
[1770135693625,24.88468932,101.05,101.01,4.33849261]
[1770135693626,20.23094221,101.05,101.01,4.33849261]
[1770135694624,20.23094221,101.05,101.01,14.23791885]
[1770135695125,20.23094221,101.05,101.02,4.33849261]
[1770135695428,20.23094221,101.05,101.01,14.23791885]
[1770135697231,10.33440953,101.04,101.0,14.23911694]
[1770135698830,9.89653268,101.05,101.01,9.89999124]
[1770135699130,38.68952481,101.07,101.03,4.33849261]
[1770135699331,4.05920489,101.06,101.03,4.33849261]
[1770135699504,4.05920489,101.07,101.03,10.61369725]
[1770135699829,13.95186904,101.09,101.05,10.61369725]
[1770135700030,13.95147359,101.09,101.06,6.27520464]
[1770135700213,10.33440953,101.07,101.03,4.33849261]
[1770135700407,6.27520464,101.06,101.03,4.33849261]
[1770135700608,10.33440953,101.06,101.02,4.33849261]
[1770135700818,10.33440953,101.05,101.01,14.23818388]
[1770135701129,6.27520464,101.04,101.01,14.23849939]
[1770135701336,20.22992673,101.06,101.02,4.33849261]
[1770135702127,10.33440953,101.05,101.01,14.23849939]
[1770135703338,10.33440953,101.05,101.01,20.51370403]
[1770135703833,20.23058559,101.05,101.01,14.23849939]
[1770135704021,24.73777953,101.06,101.02,6.27520464]
[1770135704022,9.89564404,101.06,101.02,6.27520464]
[1770135704337,4.05920489,101.07,101.03,10.61369725]
[1770135704828,20.22861217,101.07,101.03,4.33849261]
[1770135705213,6.27520464,101.05,101.02,4.33849261]
[1770135705413,20.23027487,101.06,101.02,4.33849261]
[1770135705737,10.33440953,101.05,101.01,14.23807477]
[1770135707636,20.23124866,101.05,101.01,14.23807477]
[1770135707840,10.33440953,101.04,101.01,4.33849261]
[1770135708337,10.33440953,101.04,101.01,14.23829342]
[1770135708534,6.27520464,101.02,100.99,4.33849261]
[1770135708723,10.33440953,101.02,100.98,14.24089469]
[1770135708910,6.27520464,101.01,100.98,14.24089469]
[1770135709113,4.05920489,101.02,100.98,14.24089469]
[1770135709312,10.33440953,101.02,100.99,9.90184492]
[1770135709536,6.27520464,101.01,100.98,4.33849261]
[1770135709731,16.17533327,101.01,100.98,4.33849261]
[1770135710420,13.9587677,101.02,100.98,14.24135667]
[1770135710621,13.9587677,101.02,100.98,4.33849261]
[1770135710622,6.27520464,101.01,100.98,4.33849261]
[1770135711245,44.98154707,101.02,100.98,4.33849261]
[1770135712044,20.23397234,101.02,100.98,14.24125334]
[1770135712930,16.17325856,101.03,100.99,4.14802164]
[1770135713239,20.35178114,101.04,101.0,4.14802164]
[1770135713422,14.0765765,101.04,101.0,4.14802164]
[1770135713625,20.35178114,101.04,101.0,4.14802164]
[1770135715442,20.35178114,101.04,101.0,14.04852835]
[1770135716147,20.53301271,101.05,101.01,4.37614834]
[1770135716343,20.53203249,101.06,101.02,14.27517823]
[1770135717043,4.36119213,101.05,101.02,14.27517823]
[1770135717640,20.53203249,101.06,101.02,14.27517823]
[1770135717845,4.36119213,101.05,101.02,9.89902989]
[1770135718146,10.63639677,101.05,101.02,9.89902989]
[1770135718836,20.53258888,101.05,101.01,14.27559696]
[1770135720430,10.63639677,101.03,100.99,14.27722635]
[1770135720750,6.27520464,101.02,100.99,14.27722635]
[1770135721252,10.63639677,101.0,100.96,9.90443769]
[1770135721552,10.63639677,101.0,100.97,9.90351493]
[1770135722130,10.63639677,101.0,100.96,14.28059869]
[1770135722328,10.63639677,100.99,100.95,14.28173629]
[1770135722528,6.27520464,100.99,100.96,4.37614834]
[1770135722729,20.53499445,101.03,100.98,4.37614834]
[1770135722950,4.36119213,101.03,101.0,9.90099009]
[1770135723453,20.5345783,101.03,100.99,14.27759468]
[1770135724529,6.27520464,101.02,100.99,4.37614834]
[1770135724730,6.27520464,101.02,100.98,9.90262843]
[1770135724731,10.63639677,101.0,100.96,31.87614834]
[1770135724933,10.63639677,100.99,100.96,4.37614834]
[1770135725141,6.27520464,100.99,100.95,4.37614834]
[1770135725355,6.27520464,101.0,100.97,4.37614834]
[1770135725535,20.53696103,101.01,100.97,4.37614834]
[1770135725932,10.63639677,101.0,100.97,4.37614834]
[1770135726439,20.53696103,101.01,100.97,4.37614834]
[1770135727152,9.90056426,101.01,100.98,4.37614834]
[1770135727356,45.28378934,101.02,100.98,4.37614834]
[1770135727559,6.27520464,101.01,100.98,4.37614834]
[1770135727744,4.36119213,101.01,100.97,4.37614834]
[1770135727947,10.63639677,101.0,100.97,4.37614834]
[1770135728147,10.63639677,101.0,100.97,14.27987437]
[1770135728148,4.36119213,101.0,100.97,14.27987437]
[1770135728348,10.63639677,101.01,100.97,4.37614834]
[1770135729260,16.17619473,101.0,100.97,4.37614834]
[1770135729662,16.17619473,101.0,100.96,9.9043784]
[1770135729663,6.27520464,100.99,100.95,14.28159715]
[1770135729849,10.63639677,100.99,100.95,14.28159715]
[1770135730044,6.27520464,100.98,100.95,4.37614834]
[1770135730440,10.63639677,100.99,100.95,14.28195208]
[1770135731040,6.27520464,100.98,100.95,14.28195208]
[1770135731738,14.2643786,100.98,100.94,14.28249195]
[1770135732060,4.36119213,100.98,100.95,14.28198503]
[1770135732268,20.53893291,100.99,100.95,14.28198503]
[1770135732446,20.55280992,100.99,100.95,14.28198503]
[1770135733664,45.30470522,101.0,100.96,4.37614834]
[1770135733970,1.90469701,100.99,100.95,9.90583669]
[1770135734174,6.28908165,100.98,100.95,4.37614834]
[1770135734476,8.19377866,100.99,100.95,14.28195818]
[1770135734959,8.19377866,100.99,100.95,4.37614834]
[1770135735143,6.28908165,100.98,100.95,4.37614834]
[1770135735343,8.19377866,100.99,100.95,4.37614834]
[1770135735539,9.90295107,100.98,100.95,4.37614834]
[1770135736464,4.36119213,101.0,100.96,4.37614834]
[1770135736638,24.74936241,101.02,100.97,4.37614834]
[1770135736639,10.65027378,101.01,100.97,4.37614834]
[1770135736965,4.36119213,101.01,100.97,10.66522999]
[1770135737160,4.36119213,101.0,100.97,4.37614834]
[1770135737342,10.65027378,101.0,100.97,4.37614834]
[1770135737765,6.28908165,100.98,100.95,4.37614834]
[1770135737964,6.28908165,100.98,100.96,4.37614834]
[1770135738263,10.65027378,100.99,100.96,14.28089681]
[1770135738473,0.14216157,101.02,100.98,4.37614834]
[1770135738474,10.65027378,101.02,100.98,4.37614834]
[1770135738768,20.54983514,101.02,100.98,4.37614834]
[1770135739265,6.28908165,101.02,100.98,4.37614834]
[1770135739445,9.89511181,101.06,101.02,4.37614834]
[1770135739651,20.5448981,101.07,101.03,14.27416213]
[1770135740048,4.36119213,101.07,101.03,14.27416213]
[1770135740365,20.60113039,101.07,101.03,4.32454237]
[1770135740545,9.89367642,101.08,101.04,10.61362402]
[1770135740745,9.89172052,101.1,101.06,4.32454237]
[1770135741062,10.70692465,101.1,101.06,4.32454237]
[1770135741250,6.28908165,101.09,101.06,4.32454237]
[1770135741567,10.70692465,101.07,101.03,37.39785966]
[1770135741746,10.70692465,101.07,101.03,41.72240203]
[1770135742270,20.60114377,101.07,101.03,41.72240203]
[1770135745671,10.70692465,101.05,101.02,4.32454237]
[1770135745871,6.28908165,101.04,101.01,14.22399537]
[1770135746255,6.28908165,101.06,101.02,4.32454237]
[1770135746456,6.28908165,101.06,101.03,9.89791324]
[1770135746652,10.70692465,101.05,101.01,4.32454237]
[1770135746856,10.70692465,101.05,101.01,14.22410721]
[1770135747259,6.28908165,101.03,101.0,4.32454237]
[1770135747554,6.28908165,101.03,101.01,4.32454237]
[1770135747758,6.28908165,101.04,101.01,4.32454237]
[1770135747960,10.70692465,101.03,100.99,14.22602536]
[1770135748156,10.70692465,101.03,100.97,52.25767549]
[1770135748157,6.28908165,101.0,100.97,4.32454237]
[1770135748971,6.28908165,100.99,100.97,4.32454237]
[1770135749161,10.70692465,101.01,100.97,4.32454237]
[1770135749352,6.28908165,101.0,100.97,4.32454237]
[1770135749559,6.28908165,100.99,100.97,4.32454237]
[1770135749779,16.19012735,101.0,100.97,4.32454237]
[1770135749977,6.28908165,100.99,100.96,4.32454237]
[1770135750162,6.28908165,100.98,100.95,14.23001123]
[1770135750483,10.70692465,100.99,100.95,14.23001123]
[1770135750979,10.70692465,100.99,100.96,9.90455773]
[1770135751178,16.18931154,101.01,100.97,4.32454237]
[1770135751475,4.417843,101.01,100.97,14.2283297]
[1770135751986,10.70692465,101.0,100.96,14.22899362]
[1770135752560,6.28908165,100.99,100.96,4.32454237]
[1770135753078,6.28908165,100.98,100.95,14.23030033]
[1770135753781,6.28908165,100.98,100.94,9.90638171]
[1770135753782,10.70692465,100.98,100.94,9.90638171]
[1770135754080,6.28908165,100.97,100.94,14.23092408]
[1770135754279,10.70692465,100.98,100.94,14.23092408]
[1770135754479,6.28908165,100.97,100.94,14.23092408]
[1770135755193,6.28908165,100.97,100.94,4.32454237]
[1770135755564,6.28908165,100.97,100.94,14.23136479]
[1770135756165,6.28908165,100.97,100.94,14.23126193]
[1770135756385,16.19144605,100.99,100.95,4.32454237]
[1770135756587,6.28908165,100.99,100.95,4.32454237]
[1770135756760,20.60917621,100.99,100.95,4.32454237]
[1770135756957,6.28908165,100.98,100.95,4.32454237]
[1770135757158,10.70692465,100.96,100.92,54.67521833]
[1770135757471,6.28908165,100.93,100.92,40.44232995]
[1770135757658,6.28908165,100.93,100.91,4.32454237]
[1770135757965,0.42648471,100.98,100.89,4.42454237]
[1770135758167,6.28908165,100.92,100.89,14.3358027]
[1770135758582,6.28908165,100.92,100.89,14.33631103]
[1770135758762,24.76744171,100.94,100.9,4.32454237]
[1770135758763,16.19641923,100.94,100.9,4.32454237]
[1770135758958,20.61426223,100.94,100.9,4.32454237]
[1770135759172,9.90641511,100.95,100.9,4.32454237]
[1770135759375,20.61333976,100.95,100.91,4.32454237]
[1770135760061,10.70692465,100.95,100.91,14.23364751]
[1770135760268,10.70692465,100.94,100.9,14.23464872]
[1770135760764,10.70692465,100.94,100.91,14.23416927]
[1770135760977,10.70692465,100.94,100.91,4.32454237]
[1770135761173,10.70692465,100.94,100.91,14.23426767]
[1770135761374,20.61028469,100.98,100.94,4.32454237]
[1770135761587,4.417843,100.98,100.94,4.32454237]
[1770135761888,20.60848854,101.0,100.95,10.61362402]
[1770135762182,20.60848854,101.0,100.95,14.22984219]
[1770135762183,10.70692465,100.99,100.95,14.22984219]
[1770135762971,4.417843,100.99,100.95,20.51892384]
[1770135763371,10.70692465,100.99,100.95,38.9945772]
[1770135763693,10.70692465,100.99,100.95,45.28365885]
[1770135763694,4.417843,100.99,100.95,45.28365885]
[1770135764465,4.417843,100.98,100.95,9.90529982]
[1770135764665,10.70692465,100.98,100.94,20.52017863]
[1770135764890,20.60809517,101.0,100.95,20.51947507]
[1770135765073,10.70692465,100.99,100.95,14.23039342]
[1770135765981,4.417843,100.99,100.95,14.23039342]
[1770135766194,10.70692465,100.99,100.95,14.23039342]
[1770135766368,4.417843,100.99,100.95,14.23039342]
[1770135766688,10.70692465,101.03,100.98,10.61362402]
[1770135766872,10.70692465,101.02,100.98,4.32454237]
[1770135767387,4.417843,101.02,100.98,10.61362402]
[1770135767577,10.70692465,101.02,100.98,4.32454237]
[1770135768385,20.60648735,101.02,100.98,14.22739449]
[1770135769391,10.70692465,101.0,100.96,29.08559502]
[1770135769585,10.70692465,101.0,100.95,6.28908165]
[1770135769586,4.417843,100.99,100.95,9.90541582]
[1770135769768,10.70692465,100.99,100.95,14.22995819]
[1770135769966,6.28908165,100.98,100.95,4.32454237]
[1770135770384,6.28908165,100.98,100.95,14.23042675]
[1770135770567,20.60934684,100.99,100.95,14.23042675]
[1770135770769,10.38872618,100.98,100.95,14.23042675]
[1770135772571,16.19204733,100.98,100.95,14.23042675]
[1770135772767,16.19204733,100.98,100.94,31.05585356]
[1770135772768,20.29169186,100.98,100.94,14.02255809]
[1770135772972,10.38872618,100.97,100.94,4.11621389]
[1770135773578,10.50077454,100.95,100.91,4.14641797]
[1770135773778,10.50077454,100.95,100.91,14.05548501]
[1770135773779,6.28908165,100.94,100.91,14.05548501]
[1770135773982,6.28908165,100.94,100.91,4.14641797]
[1770135774393,6.28908165,100.94,100.91,14.05613307]
[1770135774779,6.28908165,100.92,100.89,0.1]
[1770135774994,6.28908165,100.9,100.89,0.1]
[1770135775300,6.28908165,100.9,100.85,0.3144201]
[1770135775494,4.21169289,100.85,100.83,3.09923406]
[1770135775670,6.28908165,100.84,100.81,4.14641797]
[1770135775875,4.16957596,100.86,100.82,4.14641797]
[1770135776076,6.28908165,100.85,100.82,4.14641797]
[1770135776576,6.28908165,100.85,100.82,14.06498083]
[1770135776774,6.28908165,100.84,100.82,4.14641797]
[1770135776975,6.28908165,100.84,100.8,14.06669781]
[1770135777177,6.28908165,100.84,100.81,4.14641797]
[1770135777687,6.28908165,100.83,100.79,14.06769681]
[1770135778094,4.16957596,100.84,100.8,9.92033957]
[1770135778396,6.28908165,100.83,100.79,4.14641797]
[1770135778589,6.28908165,100.83,100.79,14.06747066]
[1770135779185,6.28908165,100.83,100.79,45.16060033]
[1770135779379,6.28908165,100.83,100.79,14.06747066]
[1770135779579,6.28908165,100.83,100.79,20.35655231]
[1770135779987,10.45865761,100.84,100.8,4.14641797]
[1770135780190,20.37571664,100.84,100.8,4.14641797]
[1770135780392,6.28908165,100.82,100.78,10.43549962]
[1770135780594,10.45865761,100.81,100.77,4.14641797]
[1770135780793,6.28908165,100.82,100.78,4.14641797]
[1770135780987,10.45865761,100.83,100.79,10.43549962]
[1770135781186,13.32840655,100.83,100.8,10.43549962]
[1770135781393,33.70485218,100.83,100.79,4.14641797]
[1770135781699,23.78706416,100.83,100.79,10.43549962]
[1770135781878,13.32840655,100.83,100.8,10.43549962]
[1770135782583,13.32840655,100.83,100.8,14.06635621]
[1770135782778,13.32840655,100.83,100.81,4.14641797]
[1770135782984,13.32840655,100.83,100.81,10.43549962]
[1770135783191,13.32840655,100.83,100.8,45.15702516]
[1770135783391,13.32840655,100.83,100.8,38.86794351]
[1770135783587,10.66272524,100.86,100.82,4.14641797]
[1770135783798,4.16957596,100.84,100.8,16.20901989]
[1770135783986,10.45865761,100.84,100.8,14.06635621]
[1770135784186,6.28908165,100.84,100.8,14.06635621]
[1770135784409,6.28908165,100.83,100.8,14.06635621]
[1770135784605,6.28908165,100.83,100.8,4.14641797]
[1770135784784,9.91742285,100.84,100.8,14.06669858]
[1770135784785,16.2065045,100.84,100.8,14.06669858]
[1770135785697,16.20593652,100.84,100.8,20.35578023]
[1770135786087,16.20593652,100.84,100.8,14.06669858]
[1770135786287,10.64685685,100.85,100.82,4.14641797]
[1770135786685,16.9359385,100.85,100.82,14.06483324]
[1770135786897,10.64685685,100.85,100.82,14.06483324]
[1770135787284,31.02125586,100.85,100.81,4.14641797]
[1770135787502,6.28908165,100.83,100.8,4.14641797]
[1770135787683,6.28908165,100.82,100.8,4.14641797]